bitfinex-derivatives/quotes_ETHF0:USTF0_20260131
["timestamp","ask_amount","ask_price","bid_price","bid_amount"]
[1769839537824,4.27026076,2694.6,2693.7,2.36891437]
[1769839538023,0.32817313,2694.9,2693.7,2.36891437]
[1769839538435,3.92383398,2694.5,2693.7,2.36891437]
[1769839538838,0.61242542,2694.8,2693.7,2.36891437]
[1769839539230,3.97375472,2694.4,2693.7,2.36891437]
[1769839539537,0.61242542,2694.8,2693.7,2.36891437]
[1769839539933,3.97375472,2694.4,2693.7,2.36891437]
[1769839540136,3.97375472,2694.7,2693.7,2.36891437]
[1769839540326,13.64274517,2695.5,2693.7,2.36891437]
[1769839540529,4.28402666,2694.7,2693.7,2.36891437]
[1769839540942,4.92067949,2694.9,2693.7,2.36891437]
[1769839541140,4.29958575,2694.8,2693.7,2.36891437]
[1769839541335,4.00858201,2694.6,2693.7,2.36891437]
[1769839541536,4.00858201,2694.8,2693.7,2.36891437]
[1769839542036,0.63665283,2694.9,2693.7,2.36891437]
[1769839542240,4.29965843,2694.8,2693.7,2.36891437]
[1769839542534,3.86822199,2694.8,2693.7,2.36891437]
[1769839543840,3.86822199,2694.8,2693.9,2.24289298]
[1769839544141,3.81736902,2694.8,2693.9,2.24289298]
[1769839546937,3.81736902,2694.8,2694.2,2.24289298]
[1769839551349,3.81736902,2694.8,2694.2,2.42877298]
[1769839552044,0.34668614,2694.8,2694.7,2.24289298]
[1769839552246,0.00425515,2695.2,2694.6,0.18586]
[1769839552247,2.48357067,2695.1,2694.6,0.18586]
[1769839552652,2.48357067,2695.0,2694.6,0.18586]
[1769839552951,4.27289759,2694.9,2694.6,0.18586]
[1769839553157,6.75646826,2694.9,2694.6,0.18586]
[1769839553350,4.27289759,2694.9,2694.6,0.18586]
[1769839554243,2.48357067,2694.8,2694.6,0.18586]
[1769839554447,2.48357067,2694.8,2693.9,0.1859]
[1769839554646,2.48357067,2694.6,2693.9,0.1859]
[1769839554951,2.48357067,2694.4,2693.9,0.1859]
[1769839555454,6.3738151,2694.3,2693.5,2.24289298]
[1769839555950,2.48357067,2694.3,2693.5,2.24289298]
[1769839556153,6.72555094,2694.2,2693.9,0.1859]
[1769839556353,6.72555094,2694.2,2693.5,2.24289298]
[1769839556655,4.24198027,2694.3,2693.5,2.24289298]
[1769839556851,2.48357067,2694.4,2693.5,2.24289298]
[1769839557159,4.05226507,2694.2,2693.9,0.1859]
[1769839557452,2.48357067,2694.3,2693.9,0.1859]
[1769839557955,6.53583574,2694.3,2693.9,0.1859]
[1769839559048,4.05226507,2694.3,2693.9,2.42879298]
[1769839559248,2.48357067,2694.9,2693.9,2.42879298]
[1769839559445,2.48357067,2694.9,2694.1,2.42878298]
[1769839559748,3.92768177,2694.8,2694.3,2.24289298]
[1769839560956,0.00425515,2695.2,2694.5,2.42875298]
[1769839561356,4.09145794,2695.1,2694.5,2.42875298]
[1769839564755,3.70582794,2695.1,2694.7,2.24289298]
[1769839564955,5.15e-06,2695.2,2694.9,2.24289298]
[1769839565353,3.715,2696.1,2695.3,2.42870298]
[1769839565557,2.48357067,2696.0,2695.3,2.42870298]
[1769839565755,2.48357067,2695.9,2695.3,0.18581]
[1769839566258,2.48814696,2695.9,2695.3,0.18878436]
[1769839567152,0.00457629,2695.9,2695.4,2.53244351]
[1769839570258,6.29e-06,2695.9,2695.6,2.53243351]
[1769839583172,6.29e-06,2695.9,2695.6,2.34664351]
[1769839583368,2.33534493,2697.0,2695.8,2.53241351]
[1769839583761,2.33534493,2696.9,2695.8,2.53241351]
[1769839584162,2.33534493,2696.7,2695.8,2.53241351]
[1769839584363,2.34003406,2696.7,2695.8,2.53241351]
[1769839584664,2.33534493,2696.5,2695.8,2.53241351]
[1769839585072,4.24802746,2696.4,2695.8,2.53241351]
[1769839593174,6.29254371,2696.4,2695.9,0.18577]
[1769839593671,2.04451625,2696.4,2695.9,0.18577]
[1769839593869,3.88239613,2696.3,2695.9,0.18577]
[1769839594872,3.88239613,2696.3,2695.9,2.53241351]
[1769839608587,9.13e-06,2696.7,2696.4,1.89462608]
[1769839611081,1.46161674,2697.2,2696.4,1.89462608]
[1769839611286,1.46161674,2697.6,2696.9,1.89459608]
[1769839611487,4.15554645,2697.4,2696.9,1.89459608]
[1769839611789,1.46161674,2697.6,2696.9,1.89459608]
[1769839612088,4.15554645,2697.5,2696.9,1.89459608]
[1769839612284,1.46476935,2697.6,2696.9,1.89459608]
[1769839612686,5.53499428,2697.5,2696.9,1.89459608]
[1769839615597,4.11371745,2697.5,2696.9,1.89459608]
[1769839621398,1.05719939,2697.0,2696.1,1.70889608]
[1769839621586,1.05719939,2697.0,2696.1,1.89464608]
[1769839621791,1.22478304,2697.1,2696.1,1.89464608]
[1769839621792,1.05719939,2696.8,2696.1,1.89464608]
[1769839622092,4.07771057,2696.7,2696.1,1.89464608]
[1769839625194,3.62809057,2696.7,2696.3,1.70889608]
[1769839625400,0.97415919,2697.1,2696.3,1.70889608]
[1769839625698,3.99641076,2697.0,2696.3,1.70889608]
[1769839626192,3.99641076,2697.0,2696.4,1.89462608]
[1769839629799,3.57661076,2697.0,2696.7,0.18571]
[1769839630007,0.00315261,2697.6,2696.9,1.486295]
[1769839630301,4.25896112,2697.5,2696.9,1.486295]
[1769839630890,5.10995269,2697.5,2696.9,1.486295]
[1769839649323,0.54257677,2697.4,2696.9,0.1857]
[1769839650817,0.54257677,2697.4,2696.9,1.486295]
[1769839651321,0.54257677,2697.4,2696.9,0.1857]
[1769839651620,0.31962378,2697.2,2696.3,0.18574]
[1769839652008,0.30486218,2697.0,2696.3,0.18574]
[1769839653021,0.29037535,2696.8,2696.0,1.300595]
[1769839653220,0.29037535,2696.8,2696.3,0.18574]
[1769839653420,4.13945982,2696.7,2696.3,0.18574]
[1769839662028,0.11016241,2696.6,2696.3,0.18574]
[1769839662228,4.24962223,2696.7,2696.3,0.18574]
[1769839666634,0.06768726,2696.6,2696.3,0.18574]
[1769839666825,4.20714708,2696.7,2696.3,0.18574]
[1769839669030,4.13945982,2696.7,2696.3,0.18574]
[1769839669426,4.16457732,2696.7,2696.3,0.18574]
[1769839680244,4.16457732,2696.7,2696.1,1.300595]
[1769839681351,4.16457732,2696.7,2696.3,0.18574]
[1769839681851,4.13945982,2696.7,2696.3,0.18574]
[1769839682250,0.00315261,2697.6,2696.7,1.06999179]
[1769839682550,3.96907768,2697.4,2696.7,1.06999179]
[1769839682948,0.00315261,2697.6,2696.7,1.06999179]
[1769839683154,3.96907768,2697.3,2696.7,1.06999179]
[1769839683548,0.00315261,2697.6,2696.7,1.06999179]
[1769839684052,3.94284097,2697.3,2696.7,1.06999179]
[1769839684252,3.94284097,2697.5,2696.7,1.06999179]
[1769839684453,0.00315261,2697.6,2696.7,1.06999179]
[1769839684653,4.24334467,2697.5,2696.7,1.25570179]
[1769839710568,4.24334467,2697.5,2696.9,1.08266341]
[1769839710769,0.00315261,2697.6,2697.4,1.26832341]
[1769839710972,1.22399612,2698.5,2697.4,1.27210513]
[1769839711368,4.28414851,2698.4,2697.4,1.27210513]
[1769839712073,4.28777583,2698.4,2697.4,1.27210513]
[1769839733807,4.28777583,2698.4,2697.6,1.11561466]
[1769839735302,4.28777583,2698.4,2697.6,1.30126466]
[1769839737303,4.28777583,2698.4,2697.7,1.30172522]
[1769839739503,4.28777583,2698.4,2697.9,1.11553486]
[1769839769933,4.28777583,2698.4,2697.9,1.30116486]
[1769839772439,0.00362732,2698.4,2697.9,1.30116486]
[1769839776238,0.00362732,2698.4,2698.0,0.18562]
[1769839776435,2.22449609,2699.0,2698.1,1.11236764]
[1769839776738,8.05020312,2698.9,2698.1,1.11236764]
[1769839776937,4.17856441,2698.8,2698.1,1.11236764]
[1769839777341,3.87163871,2698.7,2698.1,1.11236764]
[1769839824479,3.87163871,2698.7,2697.5,1.12292766]
[1769839826177,3.87163871,2698.7,2698.0,0.18562]
[1769839832583,3.87163871,2698.7,2697.7,1.11535644]
[1769839833187,3.87163871,2698.7,2698.0,0.18562]
[1769839833579,3.87163871,2698.7,2697.4,0.18944172]
[1769839833580,1.22381819,2698.1,2697.4,0.18944172]
[1769839833778,1.22381819,2697.8,2697.1,1.11941479]
[1769839834180,4.09388533,2697.7,2697.1,1.11941479]
[1769839834886,4.09388533,2697.7,2697.1,1.1237279]
[1769839839584,4.09388533,2697.7,2697.4,0.09524]
[1769839839781,4.09388533,2697.7,2697.1,1.1237279]
[1769839839982,1.22381819,2697.5,2696.8,0.1857]
[1769839840386,3.96796609,2697.4,2696.8,0.1857]
[1769839840892,3.96796609,2697.4,2696.8,0.18893174]
[1769839841987,3.96796609,2697.4,2696.8,0.75165504]
[1769839854504,3.96796609,2697.4,2696.8,0.18893174]
[1769839859510,1.22381819,2697.2,2696.4,0.56227291]
[1769839859700,1.22381819,2697.2,2696.5,0.56227291]
[1769839859900,3.90020353,2697.1,2696.5,0.56227291]
[1769839860104,3.90020353,2697.1,2696.4,0.18573]
[1769839860302,1.22381819,2696.9,2695.8,0.56325706]
[1769839860608,4.13782643,2696.8,2695.8,0.56623345]
[1769839861205,4.13782643,2696.8,2696.4,0.18573]
[1769839861409,4.13782643,2696.8,2696.1,0.56325413]
[1769839862209,4.13782643,2696.8,2696.4,0.18573]
[1769839865009,3.38476643,2696.8,2696.6,0.56351448]
[1769839865209,6.12e-06,2696.9,2696.6,0.56351448]
[1769839865405,6.12e-06,2696.9,2696.6,0.74923448]
[1769839865711,6.12e-06,2696.9,2696.7,0.50819792]
[1769839870717,6.12e-06,2696.9,2696.7,0.69390792]
[1769839870919,6.12e-06,2696.9,2696.8,0.50624871]
[1769839874811,6.12e-06,2696.9,2696.8,0.69195871]
[1769839878221,0.50151376,2698.1,2696.8,0.50624871]
[1769839878422,0.50151376,2698.5,2697.6,0.50624871]
[1769839878615,3.23793822,2698.0,2697.7,0.50624871]
[1769839878812,0.52678204,2698.2,2697.7,0.20252007]
[1769839879016,4.15963197,2698.5,2697.7,0.01688007]
[1769839879318,0.0033632,2698.5,2697.9,0.68027036]
[1769839881124,0.50487696,2698.5,2697.9,0.68027036]
[1769839893132,0.50487696,2698.5,2697.9,0.18563]
[1769839897730,0.552811,2698.5,2698.0,0.18562]
[1769839920465,0.59398257,2698.3,2697.3,0.57520466]
[1769839920662,0.59398257,2698.3,2697.4,0.18566]
[1769839920862,0.59398257,2698.1,2697.4,0.18566]
[1769839921170,4.00991037,2698.0,2697.4,0.18566]
[1769839921367,0.59398257,2697.9,2697.4,0.18566]
[1769839921569,0.59398257,2697.9,2697.4,0.18892178]
[1769839936379,0.57074097,2697.7,2696.9,8.10530616]
[1769839936577,0.57074097,2697.7,2696.8,0.61211154]
[1769839936780,0.57074097,2697.5,2696.8,0.61211154]
[1769839937378,0.57074097,2697.5,2696.8,0.61666693]
[1769839938275,0.57074097,2697.5,2697.4,0.18566]
[1769839938477,0.57074097,2697.5,2696.8,0.61666693]
[1769839939183,0.57074097,2697.5,2697.4,0.18566]
[1769839939477,0.57074097,2697.5,2696.8,0.61666693]
[1769839940180,0.57074097,2697.5,2697.4,0.18566]
[1769839940481,0.57074097,2697.5,2696.8,0.61666693]
[1769839941279,0.57074097,2697.5,2697.4,0.18566]
[1769839941478,0.57074097,2697.5,2696.8,0.61666693]
[1769839942281,0.57074097,2697.5,2697.4,0.18566]
[1769839942482,0.57074097,2697.5,2696.8,0.61666693]
[1769839942982,0.57074097,2697.5,2697.4,0.18566]
[1769839943178,0.57074097,2697.5,2696.8,0.61666693]
[1769839946182,0.57074097,2697.5,2697.4,0.18566]
[1769839946382,0.57074097,2697.5,2696.8,0.61666693]
[1769839946983,0.57074097,2697.5,2697.4,0.18566]
[1769839947184,0.57074097,2697.5,2696.8,0.61666693]
[1769839948288,0.57074097,2697.5,2697.4,0.18566]
[1769839948485,0.57074097,2697.5,2696.8,0.61666693]
[1769839949688,0.57074097,2697.5,2697.4,0.18566]
[1769839949884,0.57074097,2697.5,2696.8,0.61666693]
[1769839951177,0.57074097,2697.5,2697.4,0.18566]
[1769839951382,0.57074097,2697.5,2696.8,0.61666693]
[1769839951577,0.57074097,2697.5,2697.4,0.18566]
[1769839951783,0.57074097,2697.5,2696.8,0.61666693]
[1769839953188,0.57074097,2697.5,2697.4,0.18566]
[1769839953390,0.57074097,2697.5,2696.8,0.61666693]
[1769839953887,0.57074097,2697.5,2697.4,0.18566]
[1769839954084,0.57074097,2697.5,2696.8,0.61666693]
[1769839954484,0.57074097,2697.5,2697.4,0.18566]
[1769839954790,0.57074097,2697.5,2696.8,0.61666693]
[1769839954791,0.57074097,2697.5,2696.8,0.80236693]
[1769839955787,0.57074097,2697.5,2696.9,0.79781154]
[1769839955982,0.57074097,2697.5,2697.0,0.79780154]
[1769839956185,0.0033632,2698.5,2697.5,0.61211154]
[1769839956382,1.22387482,2698.3,2697.5,0.79777154]
[1769839956689,4.2307617,2698.2,2697.5,0.79777154]
[1769839957587,4.2307617,2698.2,2697.6,0.18565]
[1769839957789,4.2307617,2698.2,2697.6,0.86580711]
[1769839958187,4.90891507,2698.2,2697.6,0.86580711]
[1769839962096,0.67354601,2698.1,2697.6,0.18565]
[1769839963391,0.67354601,2698.1,2697.6,0.83633751]
[1769839966694,0.67354601,2697.9,2697.2,0.18567]
[1769839967599,0.67354601,2697.6,2696.8,0.00455539]
[1769839967896,0.67354601,2697.6,2696.8,0.6552429]
[1769839969292,0.67354601,2697.6,2697.2,0.18568]
[1769839976913,1.22387482,2697.7,2696.8,0.00455539]
[1769839976914,0.67354601,2697.4,2696.8,0.00455539]
[1769839977108,0.67354601,2697.3,2696.6,0.18572]
[1769839977317,0.67354601,2697.2,2696.6,0.18572]
[1769839977713,0.67354601,2697.2,2696.7,0.18571]
[1769839978413,0.67354601,2697.2,2696.7,0.18996893]
[1769839980517,0.67354601,2697.0,2696.3,0.65068751]
[1769839981507,0.67354601,2697.0,2696.3,0.65150422]
[1769839982212,0.67354601,2697.0,2696.7,0.18571]
[1769839982409,0.67354601,2697.0,2696.3,0.65150422]
[1769839983319,0.67354601,2697.0,2696.7,0.18571]
[1769839983521,0.67354601,2697.0,2696.3,0.65150422]
[1769839984214,3.03723671,2697.1,2696.8,0.65068751]
[1769839984415,0.67354601,2697.5,2697.0,0.83637751]
[1769839985123,4.57686027,2697.7,2697.1,0.65068751]
[1769839987416,0.66792803,2697.6,2697.0,0.18569]
[1769839987724,0.66792803,2697.6,2696.3,8.10612287]
[1769839987725,0.66792803,2697.4,2696.5,0.62884411]
[1769839988218,0.66792803,2697.2,2696.5,0.62884411]
[1769839988414,0.66792803,2697.2,2696.3,0.62966082]
[1769839988622,0.66792803,2697.0,2696.3,0.62966082]
[1769839989419,0.66792803,2697.0,2696.5,0.18572]
[1769839989925,0.66792803,2697.0,2696.5,0.81456411]
[1769839992727,0.66792803,2697.0,2696.5,0.18572]
[1769839992930,0.66792803,2696.8,2696.5,0.18572]
[1769839993225,0.66792803,2696.8,2696.3,0.62966082]
[1769839993627,0.66792803,2696.8,2696.5,0.18572]
[1769839993826,1.22387482,2697.2,2696.5,0.1752069]
[1769839994131,4.22519412,2697.1,2696.5,0.1752069]
[1769839995922,4.89312215,2697.1,2696.5,0.1752069]
[1769839996118,0.66792803,2697.0,2696.5,0.1752069]
[1769839996523,4.13893657,2696.9,2696.5,0.1752069]
[1769839999732,4.8068646,2696.9,2696.5,0.1752069]
[1769840001035,3.38395657,2696.9,2696.6,0.18572]
[1769840002236,3.38395657,2696.9,2696.6,0.81456411]
[1769840002431,0.66792803,2697.3,2696.7,0.62884411]
[1769840002938,4.75158529,2697.2,2696.7,0.62884411]
[1769840003324,0.66792803,2697.2,2696.7,0.62884411]
[1769840004941,1.89180285,2697.5,2696.7,0.62884411]
[1769840005342,4.69552643,2697.4,2696.7,0.81455411]
[1769840005732,4.69552643,2697.4,2696.8,0.1857]
[1769840006039,4.69552643,2697.4,2696.8,0.81454411]
[1769840008736,3.6421384,2697.4,2697.2,0.18567]
[1769840008944,0.66730359,2697.8,2697.2,0.81451411]
[1769840009139,0.66730359,2697.8,2697.3,0.62884411]
[1769840009339,0.66578827,2698.0,2697.4,0.18566]
[1769840009740,4.94635044,2698.0,2697.4,0.18566]
[1769840010343,0.65799569,2697.9,2697.4,0.18566]
[1769840020157,2.41369569,2697.9,2697.4,0.18566]
[1769840021661,0.63172817,2697.8,2697.4,0.18566]
[1769840031066,1.7557,2697.9,2697.4,0.18566]
[1769840031067,2.38330895,2697.9,2697.4,0.18566]
[1769840031467,2.38330895,2697.9,2697.4,0.86963702]
[1769840036175,2.1803632,2698.5,2697.4,0.18566]
[1769840036576,4.07160172,2698.4,2697.4,0.18566]
[1769840038978,1.4667,2698.3,2697.4,0.18566]
[1769840039372,4.11175861,2698.2,2697.4,0.18566]
[1769840047877,4.11175861,2698.2,2696.6,9.58565641]
[1769840048074,4.11175861,2698.2,2696.3,14.81752789]
[1769840048075,4.11175861,2698.2,2697.5,0.18565]
[1769840048474,4.11175861,2698.2,2697.6,0.18564]
[1769840048987,1.4667,2698.3,2697.8,0.18563]
[1769840063098,0.0033632,2698.5,2697.8,0.18563]
[1769840066003,0.0033632,2698.5,2697.9,0.60687664]
[1769840066507,0.58604503,2699.2,2697.9,0.60687664]
[1769840066709,0.58604503,2699.0,2697.9,0.60687664]
[1769840066899,4.15175822,2698.8,2697.9,0.60687664]
[1769840067202,0.58456757,2698.8,2697.9,0.60687664]
[1769840067403,4.15175822,2698.7,2697.9,0.60687664]
[1769840067603,4.15447537,2698.7,2697.9,0.60687664]
[1769840069009,4.73710869,2698.7,2697.9,0.60687664]
[1769840070911,0.57961472,2698.6,2697.9,0.60687664]
[1769840071213,3.88511667,2698.5,2697.9,0.60687664]
[1769840072613,0.57665105,2698.4,2697.7,0.60687664]
[1769840073015,3.8793583,2698.3,2697.7,0.60687664]
[1769840073213,0.57515976,2698.2,2697.8,0.18563]
[1769840099833,0.64687182,2698.0,2697.4,8.16715202]
[1769840100137,0.09778531,2697.9,2697.3,0.18567]
[1769840100338,0.64687182,2697.8,2697.3,0.18567]
[1769840103330,0.64687182,2697.8,2697.1,0.61742218]
[1769840104129,0.64687182,2697.8,2697.3,0.18567]
[1769840109643,0.60820998,2697.7,2696.8,8.16715202]
[1769840109951,0.60820998,2697.6,2696.5,8.77764132]
[1769840110144,0.60820998,2697.6,2696.8,0.1857]
[1769840110346,0.60820998,2697.4,2696.8,0.1857]
[1769840110750,0.60820998,2697.4,2696.9,0.6104893]
[1769840112240,0.60820998,2697.4,2697.0,0.18569]
[1769840112444,0.60820998,2697.4,2697.0,0.7961793]
[1769840113446,0.60820998,2697.7,2697.0,0.7961793]
[1769840113847,0.60820998,2697.6,2697.0,0.7961793]
[1769840114252,4.64631537,2697.5,2697.0,0.7961793]
[1769840114549,0.60820998,2697.5,2697.0,0.7961793]
[1769840121761,1.22338071,2697.8,2697.1,0.6104893]
[1769840122061,4.79912741,2697.7,2697.1,0.6104893]
[1769840122660,0.60820998,2697.6,2697.1,0.6104893]
[1769840122856,0.60820998,2697.6,2697.0,0.18569]
[1769840124059,4.19091743,2697.7,2696.9,0.6104893]
[1769840124264,1.22609786,2698.7,2697.5,0.6104893]
[1769840124664,3.93539673,2698.3,2697.5,0.6104893]
[1769840124865,1.22338071,2698.4,2697.5,0.6104893]
[1769840125266,3.95061471,2698.2,2697.5,0.7961393]
[1769840125565,1.22338071,2698.4,2697.5,0.7961393]
[1769840125966,4.07537195,2698.1,2697.5,0.7961393]
[1769840126261,0.60820998,2698.2,2697.5,0.7961393]
[1769840126964,3.88286331,2698.1,2697.5,0.7961393]
[1769840127666,4.49107329,2698.1,2697.5,0.7961393]
[1769840128969,4.49107329,2698.1,2697.6,0.6104893]
[1769840129461,3.88286331,2698.1,2697.6,0.6104893]
[1769840130667,0.60820998,2698.3,2697.6,0.6104893]
[1769840130966,3.9632738,2698.2,2697.6,0.6104893]
[1769840134165,4.57148378,2698.2,2697.6,0.6104893]
[1769840135771,0.60820998,2698.1,2697.5,0.18565]
[1769840137866,0.60820998,2698.1,2697.5,0.75222071]
[1769840159196,3.9632738,2698.2,2697.6,0.54691268]
[1769840160193,1.7531,2698.1,2697.6,0.54691268]
[1769840161498,0.55888392,2698.4,2697.8,0.54691268]
[1769840161895,3.88654823,2698.3,2697.8,0.54691268]
[1769840162096,4.44543215,2698.3,2697.8,0.54691268]
[1769840163191,4.44543215,2698.3,2697.8,0.73252268]
[1769840164198,4.44543215,2698.3,2697.9,0.54691268]
[1769840164199,3.88654823,2698.3,2697.9,0.54691268]
[1769840164495,0.00271715,2698.7,2698.3,0.54691268]
[1769840164796,0.00271715,2698.7,2698.3,0.5506599]
[1769840165990,0.55888392,2699.4,2698.6,0.54691268]
[1769840166196,0.55888392,2699.4,2698.3,0.00374722]
[1769840166197,0.55888392,2699.9,2698.9,0.54691268]
[1769840166395,4.928,2700.1,2698.8,0.18555]
[1769840166396,0.55888392,2699.5,2698.8,0.18555]
[1769840167086,0.56347221,2699.5,2698.8,0.18555]
[1769840169600,0.56347221,2699.5,2698.8,0.71686121]
[1769840189314,0.56347221,2699.5,2698.9,0.18556]
[1769840201413,0.56347221,2699.5,2698.4,8.86961802]
[1769840201414,0.75389863,2699.4,2698.4,8.86961802]
[1769840201718,0.75389863,2699.1,2698.3,0.18934722]
[1769840202111,0.75389863,2698.9,2698.3,0.18934722]
[1769840202312,0.75389863,2698.9,2698.0,0.702466]
[1769840202511,1.22222299,2699.2,2698.3,0.1856]
[1769840202512,0.75389863,2698.7,2698.3,0.1856]
[1769840203009,0.75389863,2698.7,2698.0,0.702466]
[1769840209314,0.75389863,2698.7,2698.3,0.09854722]
[1769840209509,4.19529785,2698.6,2698.3,0.09854722]
[1769840209714,0.75389863,2698.5,2698.3,0.09854722]
[1769840209917,0.75389863,2698.5,2698.0,0.702466]
[1769840210116,0.75389863,2698.5,2698.3,0.1856]
[1769840214325,0.75389863,2698.5,2698.0,0.702466]
[1769840214724,0.75389863,2698.5,2698.3,0.1856]
[1769840215725,0.75389863,2698.5,2697.7,0.18564]
[1769840215926,0.75389863,2698.2,2697.2,0.702466]
[1769840216220,0.75389863,2698.0,2697.2,0.702466]
[1769840216621,1.17523538,2697.9,2697.2,0.702466]
[1769840217034,0.75389863,2697.9,2697.2,0.702466]
[1769840217825,0.75389863,2698.2,2697.2,0.702466]
[1769840218027,4.02250558,2697.8,2697.2,0.702466]
[1769840218231,4.77640421,2697.8,2697.2,0.702466]
[1769840218423,0.75389863,2697.8,2697.1,0.18568]
[1769840218722,4.02250558,2697.7,2697.2,0.702466]
[1769840222532,4.77640421,2697.7,2697.2,0.702466]
[1769840228928,0.87861908,2697.6,2697.2,0.702466]
[1769840229232,0.88218039,2697.6,2697.2,0.702466]
[1769840230134,0.00356131,2697.6,2697.2,0.702466]
[1769840233035,0.87861908,2697.8,2697.2,0.702466]
[1769840233528,3.9168861,2697.7,2697.2,0.702466]
[1769840233936,3.92058004,2697.7,2697.2,0.70566999]
[1769840234734,4.79919912,2697.7,2697.2,0.70566999]
[1769840235037,0.93537365,2698.4,2697.6,1.40787299]
[1769840235232,0.93537365,2698.4,2697.6,0.18565]
[1769840235438,0.9389305,2698.2,2697.6,0.18565]
[1769840236039,0.94306588,2698.2,2697.6,0.18565]
[1769840249051,0.94306588,2698.2,2697.2,9.64864952]
[1769840249052,0.93241067,2698.0,2697.2,8.17035601]
[1769840249451,0.93241067,2697.8,2697.3,0.18567]
[1769840250257,0.93241067,2697.8,2697.3,0.49756793]
[1769840251455,0.93241067,2697.8,2697.3,0.18567]
[1769840255659,0.07957818,2698.1,2697.7,0.18564]
[1769840255863,1.22222299,2698.9,2697.7,0.18564]
[1769840256061,4.28908596,2698.5,2697.7,0.18564]
[1769840256254,4.28908596,2698.8,2697.7,0.18564]
[1769840256455,1.22222299,2698.9,2697.7,0.18564]
[1769840256657,1.22520701,2698.9,2697.7,0.18564]
[1769840256856,3.8557546,2698.8,2697.7,0.18564]
[1769840257566,1.03550854,2698.7,2697.7,0.18564]
[1769840258067,1.03550854,2698.5,2697.7,0.18564]
[1769840258366,1.03550854,2698.3,2697.7,0.18564]
[1769840283482,0.60174854,2698.3,2697.4,1.09218542]
[1769840283784,0.00298402,2698.9,2698.0,0.18562]
[1769840283984,0.00298402,2698.9,2698.1,1.27779542]
[1769840284184,4.14644131,2698.8,2698.1,1.27779542]
[1769840285792,1.10613806,2698.7,2698.1,1.27779542]
[1769840286185,1.10613806,2698.7,2698.1,0.18561]
[1769840293886,0.00298402,2698.9,2698.3,1.26362265]
[1769840294086,0.00298402,2698.9,2698.5,1.44920265]
[1769840294287,1.20552567,2699.1,2698.6,1.44920265]
[1769840295191,0.74231608,2699.1,2698.6,1.44920265]
[1769840296795,0.74231608,2699.1,2698.0,8.16715202]
[1769840296998,3.94535227,2699.0,2698.0,1.26362265]
[1769840297193,1.20552567,2698.9,2698.6,0.18558]
[1769840297391,1.20552567,2698.9,2698.0,1.26362265]
[1769840298194,1.20552567,2698.9,2698.6,0.18558]
[1769840321010,1.20552567,2698.9,2698.2,1.26362265]
[1769840321414,1.3946649,2698.7,2698.1,0.18561]
[1769840322309,1.3946649,2698.5,2698.1,0.18561]
[1769840322909,1.3946649,2698.5,2697.7,1.270907]
[1769840323305,1.3946649,2698.5,2698.1,0.18561]
[1769840344436,1.3946649,2698.3,2697.5,1.270907]
[1769840344834,5.32396726,2698.2,2697.5,1.270907]
[1769840345234,1.3946649,2698.2,2697.5,1.270907]
[1769840346239,1.3946649,2698.2,2698.1,0.18561]
[1769840346439,1.3946649,2698.2,2697.5,1.270907]
[1769840347142,1.3946649,2698.2,2698.1,0.18561]
[1769840348140,1.3946649,2698.2,2697.5,1.270907]
[1769840349141,1.3946649,2698.2,2698.1,0.18561]
[1769840349347,1.3946649,2698.2,2697.5,1.270907]
[1769840350145,1.3946649,2698.2,2698.1,0.18561]
[1769840350345,1.22248422,2698.8,2698.1,0.18561]
[1769840350645,4.18465911,2698.7,2698.1,0.18561]
[1769840352446,1.38854251,2698.6,2698.1,0.18561]
[1769840352844,1.38854251,2698.4,2698.1,0.18561]
[1769840353145,3.99444338,2698.3,2698.1,0.18561]
[1769840353343,5.38298589,2698.3,2698.1,0.18561]
[1769840353738,1.38854251,2698.3,2698.1,0.18561]
[1769840353939,1.38854251,2698.3,2697.7,1.41423124]
[1769840354137,4.01348313,2698.2,2698.1,0.18561]
[1769840354340,4.01348313,2698.2,2697.7,1.41423124]
[1769840354541,1.38854251,2698.7,2697.7,1.41423124]
[1769840355051,1.38854251,2698.6,2697.7,1.41423124]
[1769840355350,4.00083693,2698.5,2698.1,0.18561]
[1769840355649,1.38854251,2698.4,2698.1,0.18561]
[1769840355847,1.38854251,2698.4,2697.7,1.41423124]
[1769840356039,4.24300426,2698.3,2697.7,1.41423124]
[1769840356246,5.63154677,2698.3,2698.1,0.18561]
[1769840357553,5.63154677,2698.3,2697.7,1.41423124]
[1769840358153,5.63154677,2698.3,2698.1,0.18561]
[1769840363262,1.38854251,2698.2,2698.1,0.18561]
[1769840363454,1.38854251,2698.2,2697.7,1.41423124]
[1769840364170,1.38854251,2698.2,2698.1,0.18561]
[1769840366656,1.38854251,2698.2,2697.5,1.41423124]
[1769840366858,1.38854251,2698.1,2697.6,0.18565]
[1769840367257,1.38854251,2697.9,2697.6,0.18565]
[1769840371559,1.38854251,2698.1,2697.6,1.59988124]
[1769840371758,0.66602001,2698.1,2697.6,1.59988124]
[1769840371959,4.13957943,2698.0,2697.6,1.59988124]
[1769840375169,4.13957943,2698.0,2697.6,0.18565]
[1769840375467,5.52812194,2698.0,2697.6,0.18565]
[1769840380761,1.44249523,2697.9,2697.6,0.18565]
[1769840383170,8.358,2698.9,2697.6,0.18565]
[1769840383360,1.45720099,2698.7,2697.6,0.18565]
[1769840383864,1.45720099,2698.5,2697.6,0.18565]
[1769840384171,4.12950781,2698.4,2697.6,0.18565]
[1769840384472,1.46415943,2698.3,2697.6,0.18565]
[1769840384765,0.13141172,2698.2,2697.6,0.18565]
[1769840384970,1.46415943,2698.1,2697.6,0.18565]
[1769840385371,5.59974659,2698.0,2697.6,0.18565]
[1769840385674,1.47023878,2698.0,2697.6,0.18565]
[1769840386171,1.47701223,2698.8,2697.6,1.70460023]
[1769840386472,1.47701223,2698.7,2697.6,1.70460023]
[1769840386774,4.15155349,2698.6,2697.6,1.70460023]
[1769840386964,1.47701223,2698.5,2697.6,1.70460023]
[1769840387272,1.5085437,2698.3,2697.6,1.70460023]
[1769840387571,4.15155349,2698.4,2697.6,1.70460023]
[1769840387572,1.5085437,2698.1,2697.6,0.18565]
[1769840391576,1.5085437,2698.1,2697.6,1.70460023]
[1769840391968,4.648,2698.9,2697.6,1.70460023]
[1769840392167,1.53491201,2698.7,2697.6,1.70460023]
[1769840392670,1.53491201,2698.5,2697.6,1.70460023]
[1769840392976,4.15215419,2698.4,2697.6,1.70460023]
[1769840393273,1.53491201,2698.3,2697.6,1.70460023]
[1769840393577,0.7213258,2698.2,2697.6,1.70460023]
[1769840393875,2.22984605,2698.2,2697.6,1.70460023]
[1769840394174,1.50852025,2698.2,2697.6,1.70460023]
[1769840394478,1.01555359,2698.1,2697.6,1.70460023]
[1769840399176,0.63258359,2698.1,2697.8,1.51895023]
[1769840399377,1.53491201,2698.4,2697.8,1.51895023]
[1769840400380,1.53491201,2698.4,2697.9,1.70458023]
[1769840400977,0.00355377,2699.1,2697.9,1.51895023]